Cogmind - Beta 11 *** ADVENTURER MODE // 2022.04.12 @ 16:55:04 Player: Ms Vella Result: Destroyed by 8R-AWN with 8R-AWN's Boregun Performance ------------- Evolutions (0) 0 Regions Visited (3) 600 Robots Destroyed (8) 40 Value Destroyed (270) 270 Prototype IDs (6) 120 Alien Tech Used (0) 0 Bonus (0) 0 TOTAL SCORE: 1030 Bonus ------- None Cogmind --------- Core Integrity 0/250 Matter 254/300 Energy 12/250 System Corruption 1% Temperature Hot (250) Movement Core (500) Ox9 Location -10/Exiles Parts ------- > --- POWER (1) -------- Ion Engine > --- PROPULSION (2) --- (None) > --- UTILITY (2) ------ Large Storage Unit Core Shielding > --- WEAPON (2) ------- Light EM Pulse Cannon > --- INVENTORY (15) --- Improved Heat Sink Large Storage Unit High-capacity Battery (250) High-capacity Matter Pod (200) High-capacity Matter Pod (130) Seismic Detector Light EM Pulse Cannon Light EM Pulse Cannon Peak State ------------ > --- POWER ------------ Light Nuclear Core > --- PROPULSION ------- Aluminum Leg Aluminum Leg > --- UTILITY ---------- Large Storage Unit Core Shielding > --- WEAPON ----------- Light EM Pulse Cannon Light Cannon > --- INVENTORY -------- Ion Engine Light Treads Light Treads Wheel Compact Wheel Large Storage Unit High-capacity Battery High-capacity Matter Pod High-capacity Matter Pod Sensor Array Medium Laser Medium Laser Light EM Pulse Cannon Light EM Pulse Cannon Light EM Pulse Cannon [Rating: 11] Favorites ----------- Power Light Nuclear Core Engine Light Ion Engine Power Core Light Nuclear Core Propulsion Aluminum Leg Leg Aluminum Leg Utility Large Storage Unit Storage Large Storage Unit Protection Core Shielding Weapon Light Cannon Energy Gun Medium Laser Energy Cannon Light EM Pulse Cannon Ballistic Gun Light Assault Rifle Ballistic Cannon Light Cannon Build | -11 -10 -10 -10 ------- Run | Scr Mat Min Exi Slots Evolved . | . . . . Power . | . . . . Propulsion . | . . . . Utility . | . . . . Weapon . | . . . . Parts Attached 11 | . 6 1 4 Power 3 | . 1 1 1 Engine 1 | . . . 1 Core 2 | . 1 1 . Reactor . | . . . . Propulsion . | . . . . Treads . | . . . . Leg . | . . . . Wheel . | . . . . Hover . | . . . . Flight . | . . . . Utility 2 | . 2 . . Device . | . . . . Storage 1 | . 1 . . Processor . | . . . . Hackware . | . . . . Protection 1 | . 1 . . Artifact . | . . . . Weapon 6 | . 3 . 3 Energy Gun 2 | . . . 2 Energy Cannon 2 | . 1 . 1 Ballistic Gun 1 | . 1 . . Ballistic Cannon 1 | . 1 . . Launcher . | . . . . Special Weapon . | . . . . Impact Weapon . | . . . . Slashing Weapon . | . . . . Piercing Weapon . | . . . . Special Melee Weapon . | . . . . Unidentified Prototypes . | . . . . Parts Lost 7 | . . . 7 Power 1 | . . . 1 Propulsion 2 | . . . 2 Utility . | . . . . Weapon 4 | . . . 4 Highest Loss Streak 7 | . . . 7 To Critical Strikes 3 | . . . 3 Average Slot Usage (%) 98 | . 97 100 98 Engine 1 | . 2 . . Core 12 | . 11 14 13 Leg 27 | . 28 28 27 Storage 14 | . 14 14 14 Protection 12 | . 11 14 14 Energy Gun 2 | . 5 . . Energy Cannon 8 | . 1 14 13 Ballistic Gun 4 | . 9 . . Ballistic Cannon 12 | . 11 14 13 Naked Turns . | . . . . Heaviest Build 33 | 12 33 33 33 Greatest Support 20 | 20 20 20 20 Greatest Overweight (x) 2 | . 1 1 2 Average Overweight (x) . | . . 1 1 Largest Inventory Capacity 15 | . 15 15 15 Average Capacity 14 | . 14 15 15 Most Carried 15 | . 15 15 12 Average Carried 11 | . 11 12 11 Final Capacity 15 | 8 15 15 15 Final Carried 15 | 6 15 12 8 Class Distribution -------------------- 100% | Mutant Dominant Class ---------------- Mutant | -10/Materials Mutant | -10/Mines Mutant | -10/Exiles Resources | -11 -10 -10 -10 ----------- Run | Scr Mat Min Exi Matter Collected 646 | 200 238 208 . Remotely . | . . . . Salvage Created 347 | . 174 101 72 Parts 26 | . 8 8 10 Haulers Intercepted . | . . . . Recyclers Shooed 3 | . 3 . . Parts Field Recycled . | . . . . Retrieved Matter . | . . . . Parts Self-Destructed . | . . . . Prevented . | . . . . Kills | -11 -10 -10 -10 ------- Run | Scr Mat Min Exi Combat Hostiles Destroyed 9 | . 4 2 3 Guns 4 | . 3 . 1 Cannons 5 | . 1 2 2 Classes Destroyed 3 | . 2 . 1 Watcher 1 | . 1 . . Grunt 6 | . 4 2 . Assembled 3 | . . . 3 Best Kill Streak 4 | . 2 2 4 Combat Bots Only 3 | . 2 2 3 Max Kills in Single Turn 1 | . 1 1 1 Gunslinging . | . . . . Exploded . | . . . . Melee . | . . . . Uniques/NPCs Destroyed 1 | . . . 1 EX-BIN (-10/Exiles) Combat | -11 -10 -10 -10 -------- Run | Scr Mat Min Exi Damage Taken 1152 | . 194 69 889 Core 254 | . 47 16 191 Absorbed by Shields . | . . . . Redirected to Shielding 42 | . 4 3 35 Core Remaining (%) 100 | 100 . . . Volleys Fired 39 | . 16 3 20 Largest 2 | . 2 2 2 Hottest 100 | . 100 91 91 Shots Fired 67 | . 32 6 29 Gun 26 | . 24 . 2 Cannon 41 | . 8 6 27 Launcher . | . . . . Special . | . . . . Kinetic 28 | . 16 3 9 Thermal 18 | . 16 . 2 Explosive . | . . . . Electromagnetic 21 | . . 3 18 Robot Hit Streak 10 | . 6 4 10 Robot Miss Streak 4 | . 1 1 4 Penetration Max . | . . . . Secondary Targets . | . . . . Shots Hit Robots 43 | . 22 4 17 Core Hits 24 | . 12 3 9 Critical Kills . | . . . . Critical Parts Destroyed . | . . . . Critical Strikes . | . . . . Melee Attacks . | . . . . Impact . | . . . . Slashing . | . . . . Piercing . | . . . . Sneak Attacks . | . . . . Combat Hostiles . | . . . . Follow-up Attacks . | . . . . Damage Inflicted 632 | . 298 86 248 Guns 184 | . 172 . 12 Cannons 432 | . 110 86 236 Explosions . | . . . . Melee . | . . . . Ramming 16 | . 16 . . Kinetic 267 | . 145 38 84 Thermal 149 | . 137 . 12 Explosive . | . . . . Electromagnetic 200 | . . 48 152 Impact . | . . . . Slashing . | . . . . Piercing . | . . . . Highest Corruption 1 | . 1 1 1 Average Corruption 1 | . 1 1 1 Corruption Purged . | . . . . Corruption Blocked . | . . . . Effects 10 | . 1 1 8 Message Errors 3 | . 1 . 2 Matter Fused 2 | . . 1 1 Heat Flow Errors 3 | . . . 3 Data Loss (major) 1 | . . . 1 Misfires 1 | . . . 1 Overload Shots . | . . . . Overflow Damage 14 | . . . 14 Projectiles 14 | . . . 14 Explosions . | . . . . Melee . | . . . . Knockbacks 5 | . 4 . 1 Impact 1 | . 1 . . Kinetic 4 | . 3 . 1 Secondary . | . . . . Self-Inflicted Damage . | . . . . Shots . | . . . . Rammed . | . . . . Targets Rammed 5 | . 5 . . Kicked 5 | . 5 . . Crushed . | . . . . Highest Temperature 500 | . 342 91 500 Average Temperature 161 | . 117 41 206 Received Heat Transfer 349 | . 138 51 160 Effects 6 | . 1 . 5 Energy Bleed 3 | . . . 3 Interference 1 | . . . 1 Short Circuit 2 | . 1 . 1 Siege Activations . | . . . . Robots Corrupted . | . . . . Combat Hostiles . | . . . . Parts Fried . | . . . . Impact Corruptions . | . . . . Robots Melted . | . . . . Combat Hostiles . | . . . . Parts Melted . | . . . . Heat Transferred 444 | . 407 . 37 Parts Sabotaged . | . . . . Parts Stolen . | . . . . Parts Stripped . | . . . . Power Chain Reactions . | . . . . Missiles Intercepted . | . . . . Alert | -11 -10 -10 -10 ------- Run | Scr Mat Min Exi Peak Influence 146 | . 146 83 . Initial 9 | . . 9 . Average 42 | . 31 81 . Maximum Alert Level . | . . . . Low Security (%) 100 | . 100 100 . Level 1 . | . . . . Level 2 . | . . . . Level 3 . | . . . . Level 4 . | . . . . Level 5 . | . . . . High Security . | . . . . Max Security . | . . . . Squads Dispatched . | . . . . Investigation . | . . . . Extermination . | . . . . Reinforcement . | . . . . Assault . | . . . . Garrison . | . . . . Intercept . | . . . . Searches Triggered . | . . . . Construction Impeded . | . . . . Haulers Reinforced . | . . . . Active Scanning Responses . | . . . . Cargo Convoy Interrupts . | . . . . Stealth | -11 -10 -10 -10 --------- Run | Scr Mat Min Exi Distress Signals 1 | . 1 . . Communications Jammed . | . . . . Distress Signals . | . . . . Times Spotted 20 | . 10 2 8 Peak Tracking Total 9 | . 2 2 9 Tactical Retreats 2 | . 2 . . Traps | -11 -10 -10 -10 ------- Run | Scr Mat Min Exi Traps Triggered 2 | . 2 . . Indirectly . | . . . . Trap Hack Attempts . | . . . . Triggered . | . . . . Disarmed . | . . . . Reprogrammed . | . . . . Reused . | . . . . Traps Extracted . | . . . . Installed . | . . . . Triggered . | . . . . Machines | -11 -10 -10 -10 ---------- Run | Scr Mat Min Exi Machines Disabled 3 | . . 1 2 Max in Single Turn 1 | . . 1 1 Machines Sabotaged . | . . . . Garrisons Compromised . | . . . . Overloaded Fab Kills . | . . . . Hacking | -11 -10 -10 -10 --------- Run | Scr Mat Min Exi Machines Accessed 6 | . 6 . . Terminals 6 | . 6 . . Fabricators . | . . . . Repair Stations . | . . . . Recycling Units . | . . . . Scanalyzers . | . . . . Garrison Access . | . . . . Total Hacks 19 | . 19 . . Successful 14 | . 14 . . Failed 5 | . 5 . . Catastrophic 1 | . 1 . . Database Lockouts . | . . . . Manual 8 | . 8 . . Terminals 19 | . 19 . . Fabricators . | . . . . Repair Stations . | . . . . Recycling Units . | . . . . Scanalyzers . | . . . . Garrison Access . | . . . . Terminal Hacks 11 | . 11 . . Record 1 | . 1 . . Robot Analysis 1 | . 1 . . Prototype ID Bank 4 | . 4 . . Branch Access Points 1 | . 1 . . Machine Index 1 | . 1 . . Unreport Threat 1 | . 1 . . Surveillance Status 1 | . 1 . . Zone Layout 1 | . 1 . . Fabricator Hacks . | . . . . Repair Station Hacks . | . . . . Recycling Unit Hacks . | . . . . Scanalyzer . | . . . . Garrison Access Hacks . | . . . . Unauthorized Hacks 3 | . 3 . . Terminals 3 | . 3 . . Botnet 3 | . 3 . . Fabricators . | . . . . Repair Stations . | . . . . Recycling Units . | . . . . Scanalyzers . | . . . . Garrison Access . | . . . . Data Cores Recovered . | . . . . Used . | . . . . Hacking Detections 6 | . 6 . . Full Trace Events 2 | . 2 . . Feedback Events . | . . . . Feedback Blocked . | . . . . Robot Schematics Acquired . | . . . . Robots Built . | . . . . Authchips . | . . . . Time . | . . . . Total Robot Build Rating . | . . . . Part Schematics Acquired . | . . . . Parts Built . | . . . . Authchips . | . . . . Time . | . . . . Total Part Build Rating . | . . . . Parts Repaired . | . . . . Time . | . . . . Parts Recycled . | . . . . Recycled Matter . | . . . . Retrieved Matter . | . . . . Retrieved Components . | . . . . Parts Scanalyzed . | . . . . Part Schematics Acquired . | . . . . Parts Damaged . | . . . . Bothacking | -11 -10 -10 -10 ------------ Run | Scr Mat Min Exi Used RIF Installer . | . . . . Robots Hacked . | . . . . Non-combat . | . . . . Combat . | . . . . Robot Hacks Applied . | . . . . Relay Couplers Released . | . . . . Fabnet Peak Effective % . | . . . . Robots Rewired . | . . . . Allies Hacked . | . . . . Hacks Repelled . | . . . . Allies | -11 -10 -10 -10 -------- Run | Scr Mat Min Exi Total Allies . | . . . . Largest Group . | . . . . Highest-Rated Group . | . . . . Highest-Rated Ally . | . . . . Total Orders . | . . . . Ally Attacks . | . . . . Total Damage . | . . . . Kills . | . . . . Allies Corrupted . | . . . . Allies Melted . | . . . . Intel | -11 -10 -10 -10 ------- Run | Scr Mat Min Exi Robot Analysis Total 1 | . 1 . . Derelict Logs Recovered 1 | . . 1 . Drone Launches . | . . . . Drone Recoveries . | . . . . Exploration | -11 -10 -10 -10 ------------- Run | Scr Mat Min Exi Turns Passed 1901 | . 878 244 779 Spaces Moved 936 | 1 434 122 379 Core . | . . . . Treads . | . . . . Legs 936 | 1 434 122 379 Wheels . | . . . . Hover . | . . . . Flight . | . . . . Fastest Speed 120 | 120 120 190 190 Average Speed 186 | 120 181 190 190 Slowest Speed 260 | 120 190 190 260 Overloaded Moves . | . . . . Propulsion Burnouts . | . . . . Robots Hopped . | . . . . Cave-ins Triggered . | . . . . Exploration Rate (%) 46 | 2 87 26 70 Regions Visited 3 Branch Regions 2 Pre-discovered Areas 1 | . . 1 . Known Exits Taken 1 | . 1 . . Unknown Exits Taken 2 | 1 . 1 . Scrap Searched . | . . . . Spaces Dug . | . . . . Terrain Destroyed . | . . . . Melee . | . . . . Projectile . | . . . . AOE . | . . . . Terrain Rammed . | . . . . Walls Destroyed . | . . . . Machines Disabled . | . . . . Actions | -11 -10 -10 -10 --------- Run | Scr Mat Min Exi Total 1031 | . 490 131 410 Wait 21 | . 14 . 7 Move 933 | . 433 121 379 Hop . | . . . . Pick Up 11 | . 10 1 . Fast Attach 5 | . 5 . . Attach 4 | . . . 4 Detach 1 | . 1 . . Swap 2 | . 1 1 . Drop 10 | . 5 5 . Fire 39 | . 16 3 20 Melee . | . . . . Ram . | . . . . Kick 5 | . 5 . . Crush . | . . . . Escape Stasis . | . . . . Rewire . | . . . . Trap . | . . . . Miscellaneous . | . . . . Route ------- -11/Scrapyard -10/Materials (discovered 4 exits: [*Mat x2] / *Min x2) -10/Mines -10/Exiles History --------- Turn | Location | Event 1 | -11/Scrapyard | Discovered new exit (range 0) 1 | -11/Scrapyard | Entered Materials 159 | -10/Materials | Discovered new exit (range 8) 311 | -10/Materials | Build established: Mutant 361 | -10/Materials | Discovered new exit (range 11) 382 | -10/Materials | Identified exit to Mines 529 | -10/Materials | Discovered new exit (range 16) 879 | -10/Materials | Entered Mines 1113 | -10/Mines | Deemed a non-threat by the Exiles lab entrance 1113 | -10/Mines | Discovered new exit (range 5) 1123 | -10/Mines | Entered Exiles 1173 | -10/Exiles | Met 8R-AWN 1205 | -10/Exiles | Met EX-HEX 1308 | -10/Exiles | Met EX-DEC 1349 | -10/Exiles | Visited The Gauntlet 1693 | -10/Exiles | Met EX-BIN 1840 | -10/Exiles | Attacked by the Exiles 1853 | -10/Exiles | Destroyed EX-BIN 1882 | -10/Exiles | Core integrity fell below 50% 1898 | -10/Exiles | Core integrity fell below 20% 1902 | -10/Exiles | Destroyed by 8R-AWN with 8R-AWN's Boregun Last Messages --------------- 01882_ Lgt. Nuclear Core destroyed. 01883_ Overheating: Energy bleed (-17). 01884_ Aluminum Leg destroyed. 01884_ Penetrated by HV Slug. 01886_ Med. Laser broken. 01886_ Overheating: Short circuit. 01886_ Machine disabled. 01886_ as-49739 destroyed. 01887_ Overheating: Energy bleed (-5). 01887_ System corrupted: Substantial component data lost. 01887_ Penetrated by HV Slug. 01889_ HV Slug penetrates as-96632. 01889_ as-96632 suffers critical hit (Destroy). 01889_ HV Slug penetrates Wall. 01889_ Penetrated by HV Slug. 01889_ Med. Laser destroyed. 01891_ Penetrated by HV Slug. 01896_ Critical hit (Destroy). 01896_ Broken Med. Laser destroyed. 01898_ Penetrated by HV Slug. Map ----- +----------------------------------------------------+ | | | | | ?????????????????????????????????????????????????? | | ?????????????????????????????????????????????????? | | ?????????????????????????????????????????????????? | | ?????????????????????????????????????????????????? | | ?????????????????????????????????????????????????? | | ??????????????????????########???????????????????? | | ??????????????????????#X #???????????????????? | | ??????????????????????## #???????????????????? | | ???????????????????????# #???????????????????? | | ???????????????????????# #??######???????????? | | ???????????????????????# #?""""""#???????????? | | ???????????????????????# ## """#???????????? | | ???????????????????????# X""#???????????? | | ???????????????????????# ## """#???????????? | | ???????????????######### #?""""""#???????????? | | ???????????????#""""""## #??######???????????? | | ???????????????#"""" ## #???????????????????? | | ???????????????#""X" #???????????????????? | | ???????????????#" #???????????????????? | | ???????????????#" ## #???????????????????? | | ???????????????#""""""## #???????????????????? | | ???????????????##"###### #???????????????????? | | ??????????????? "?????# #???""""????????????? | | ??????????????"""??????# @ %#??""""""???????????? | | ?????????????#""??????## ###"" """???????????? | | ??????????????????????#" %% """"??????????? | | ??????????????????????# """??????????? | | ??????????????????????# % % % """??????????? | | ??????????????????????#" """??????????? | | ??????????????????????#" % "??????????? | | ??????????????????????#" """??????????? | | ??????????????????????## = ""??????????? | | ???????????????????????# !!! """??????????? | | ???????????????????????#"!%!! X" """??????????? | | ???????????????????????#"=!! """ ??????????? | | ???????????????????????#" """""" "??????????? | | ??????????????????????##"%a a#######?????????????? | | ?????????????????????##"" #???????????????????? | | ????????????????????##"" #???????????????????? | | ???????????????????""""" ##??????????????????? | | ?????????????????"" " "" ##???##########????? | | ????????????????""" " #####"""""""""##??? | | ???????????????? " " """ """"##?? | | ?????????????? "" " #?? | | ?????????????? " """#?? | | ??????????? ? " "#?? | | ???????? ? " "##? | | ?????? ""## | +----------------------------------------------------+ Best States ------------- Heat Dissipation 25 Energy Generation 14 Energy Capacity 250 Matter Stores 300 Matter Capacity 300 Sight Range 16 Terrain Scan Density 10 Resistance: KI 20 Resistance: TH 20 Resistance: EX 20 Resistance: EM 20 Resistance: I 20 Resistance: S 20 Resistance: P 20 Core Shielding 20 Evasion (%) 55 Offensive Hacking 10 Item Schematics ----------------- None Robot Schematics ------------------ None Fabricated ------------ Nothing Alien Tech Used ----------------- None Achievements -------------- None Challenges ------------ None Game ------ Seed DeepGravitonBeam Manual? 0 Play Time 00:15:13 Cumulative 886.0 hours Start 2022.04.12 @ 16:41:45 End 2022.04.12 @ 16:55:04 Sessions 1 Manual Loads 0 Difficulty Adventurer Special Mode None Game No. 180 Rogue 1 Adventurer 179 Explorer 0 Win Type - Total 3 Types 3/0/0/0/0/0/0/0/0 Lore% 68 Gallery% 80 Achievement% 64 Wizard Run 0 Options --------- ASCII 0 Keyboard 0 Movement Mouse Keybinds 0 Fullscreen 0 Font 16/SmallcapsGlow Map View 76x50 Tactical HUD 1 Map Filters NONE Filters BRIGHTNESS(100)|SATURATION(100)|LOW_CONTRAST(13,24,33) Steam 1 RUN: ec0a9083-8c87-4e40-8768-a4fd3fcde840